fUST/lending_fUST_20250227
["ID","MTS","AMOUNT","RATE_DAILY","PERIOD"]
[354630569,1740598248780,-500.0,0.00052328,120]
[354630570,1740598248790,-500.0,0.00052328,120]
[354630571,1740598248805,-500.0,0.00052328,120]
[354630572,1740598248815,-1039.61,0.00052328,120]
[354630573,1740598248825,-500.0,0.00052328,120]
[354630574,1740598248839,-500.0,0.00052328,120]
[354630575,1740598248848,-817.91,0.00052328,120]
[354630576,1740598248858,-3320.47,0.00052328,120]
[354630577,1740598248867,-500.0,0.00052328,120]
[354630578,1740598248877,-500.0,0.00052328,120]
[354630579,1740598248887,-203.99,0.00052328,120]
[354630580,1740598248896,-500.0,0.00052328,120]
[354630581,1740598248905,-531.89,0.00052328,120]
[354630582,1740598248915,-500.0,0.00052328,120]
[354630583,1740598248924,-500.0,0.00052328,120]
[354630584,1740598248935,-500.0,0.00052328,120]
[354630585,1740598248945,-588.1352269,0.00052328,120]
[354630586,1740598248954,-500.0,0.00052328,120]
[354630587,1740598248965,-1977.33,0.00052328,120]
[354630588,1740598248974,-500.0,0.00052328,120]
[354630589,1740598248984,-500.0,0.00052328,120]
[354630590,1740598248993,-965.69,0.00052328,120]
[354630591,1740598249003,-500.0,0.00052602,30]
[354630592,1740598249013,-205.34,0.00052602,120]
[354630593,1740598249022,-500.0,0.00052602,120]
[354630594,1740598249032,-200.0,0.00052602,7]
[354630595,1740598249041,-500.0,0.00052602,120]
[354630596,1740598249051,-500.0,0.00052602,120]
[354630597,1740598249060,-500.0,0.00052602,120]
[354630598,1740598249069,-500.0,0.00052602,120]
[354630599,1740598249079,-500.0,0.00052602,120]
[354630600,1740598249088,-500.0,0.00052602,120]
[354630601,1740598249097,-500.0,0.00052602,120]
[354630602,1740598249106,-500.0,0.00052602,120]
[354630603,1740598249115,-321.73792829,0.00052602,120]
[354630604,1740598249125,-500.0,0.00052602,120]
[354630605,1740598249135,-500.0,0.00052602,120]
[354630606,1740598249144,-500.0,0.00052602,120]
[354630607,1740598249153,-500.0,0.00052602,120]
[354630608,1740598249163,-500.0,0.00052602,120]
[354630609,1740598249172,-500.0,0.00052602,120]
[354630610,1740598249181,-500.0,0.00052602,120]
[354630611,1740598249191,-500.0,0.00052602,120]
[354630612,1740598249200,-500.0,0.00052602,120]
[354630613,1740598249209,-500.0,0.00052602,120]
[354630614,1740598249222,-202.83,0.00052602,120]
[354630615,1740598249232,-1575.21,0.00052602,120]
[354630616,1740598249242,-500.0,0.00052602,120]
[354630617,1740598249252,-500.0,0.00052602,120]
[354630618,1740598249263,-500.0,0.00052602,120]
[354630619,1740598249273,-500.0,0.00052602,120]
[354630620,1740598249284,-838.59,0.00052602,120]
[354630621,1740598249295,-500.0,0.00052602,120]
[354630622,1740598249305,-500.0,0.00052602,120]
[354630623,1740598249315,-500.0,0.00052602,120]
[354630624,1740598249325,-501.85,0.00052602,120]
[354630625,1740598249336,-500.0,0.00052602,120]
[354630626,1740598249345,-871.33,0.00052602,120]
[354630627,1740598249355,-500.0,0.00052602,120]
[354630628,1740598249365,-500.0,0.00052602,120]
[354630629,1740598249374,-500.0,0.00052602,120]
[354630630,1740598249383,-500.0,0.00052602,120]
[354630631,1740598249392,-500.0,0.00052602,120]
[354630632,1740598249402,-555.85,0.00052602,120]
[354630633,1740598249411,-500.0,0.00052602,120]
[354630634,1740598249421,-500.0,0.00052602,120]
[354630635,1740598249431,-21904.82,0.00052602,7]
[354630636,1740598249440,-500.0,0.00052602,120]
[354630637,1740598249450,-758.43,0.00052602,120]
[354630638,1740598249460,-500.0,0.00052602,120]
[354630639,1740598249472,-546.24,0.00052602,120]
[354630640,1740598249482,-500.0,0.00052602,120]
[354630641,1740598249491,-577.42,0.00052602,120]
[354630642,1740598249500,-15703.25,0.00052602,3]
[354630643,1740598249510,-214.49,0.00052602,120]
[354630644,1740598249519,-500.0,0.00052602,120]
[354630645,1740598249529,-500.0,0.00052602,120]
[354630646,1740598249539,-740.24,0.00052602,120]
[354630647,1740598249548,-500.0,0.00052602,120]
[354630648,1740598249558,-500.0,0.00052602,120]
[354630649,1740598249567,-1417.07,0.00052602,120]
[354630650,1740598249578,-500.0,0.00052602,120]
[354630651,1740598249587,-3126.38,0.00052602,120]
[354630652,1740598249597,-500.0,0.00052602,120]
[354630653,1740598249606,-626.25,0.00052602,120]
[354630654,1740598249616,-500.0,0.00052602,120]
[354630655,1740598249626,-500.0,0.00052602,120]
[354630656,1740598249635,-500.0,0.00052602,120]
[354630657,1740598249645,-500.0,0.00052602,120]
[354630658,1740598249654,-500.0,0.00052602,120]
[354630659,1740598249664,-279.83,0.00052602,120]
[354630660,1740598249673,-500.0,0.00052602,120]
[354630661,1740598249683,-500.0,0.00052602,120]
[354630662,1740598249692,-500.0,0.00052602,120]
[354630663,1740598249702,-500.0,0.00052602,120]
[354630664,1740598249712,-500.0,0.00052602,120]
[354630665,1740598249724,-3433.35,0.00052602,6]
[354630666,1740598249734,-500.0,0.00052602,120]
[354630667,1740598249743,-500.0,0.00052602,120]
[354630668,1740598249753,-500.0,0.00052602,120]
[354630669,1740598249762,-389.92,0.00052602,120]
[354630670,1740598249771,-500.0,0.00052602,120]
[354630671,1740598249780,-1039.61,0.00052602,120]
[354630672,1740598249790,-500.0,0.00052602,120]
[354630673,1740598249799,-817.91,0.00052602,120]
[354630674,1740598249812,-3320.47,0.00052602,120]
[354630675,1740598249821,-500.0,0.00052602,120]
[354630676,1740598249831,-500.0,0.00052602,120]
[354630677,1740598249841,-500.0,0.00052602,120]
[354630678,1740598249851,-500.0,0.00052602,120]
[354630679,1740598249861,-500.0,0.00052602,120]
[354630680,1740598249871,-1977.33,0.00052602,120]
[354630681,1740598249881,-500.0,0.00052602,120]
[354630682,1740598249891,-965.69,0.00052602,120]
[354630683,1740598249903,-1034.96748408,0.00052698,10]
[354630684,1740598249912,-501.3810378,0.00052698,10]
[354630685,1740598249922,-1500.0,0.00052698,10]
[354630686,1740598249932,-500.0,0.00052876,30]
[354630687,1740598249941,-500.0,0.00052876,120]
[354630688,1740598249953,-200.0,0.00052876,7]
[354630689,1740598249962,-500.0,0.00052876,120]
[354630690,1740598249974,-500.0,0.00052876,120]
[354630691,1740598249983,-500.0,0.00052876,120]
[354630692,1740598249993,-500.0,0.00052876,120]
[354630693,1740598250002,-500.0,0.00052876,120]
[354630694,1740598250012,-500.0,0.00052876,120]
[354630695,1740598250021,-500.0,0.00052876,120]
[354630696,1740598250031,-500.0,0.00052876,120]
[354630697,1740598250040,-500.0,0.00052876,120]
[354630698,1740598250050,-500.0,0.00052876,120]
[354630699,1740598250060,-500.0,0.00052876,120]
[354630700,1740598250070,-500.0,0.00052876,120]
[354630701,1740598250079,-500.0,0.00052876,120]
[354630702,1740598250089,-500.0,0.00052876,120]
[354630703,1740598250099,-500.0,0.00052876,120]
[354630704,1740598250108,-500.0,0.00052876,120]
[354630705,1740598250118,-500.0,0.00052876,120]
[354630706,1740598250127,-1575.21,0.00052876,120]
[354630707,1740598250137,-500.0,0.00052876,120]
[354630708,1740598250147,-271.12,0.00052876,120]
[354630709,1740598250157,-500.0,0.00052876,120]
[354630710,1740598250167,-500.0,0.00052876,120]
[354630711,1740598250177,-838.59,0.00052876,120]
[354630712,1740598250186,-500.0,0.00052876,120]
[354630713,1740598250196,-500.0,0.00052876,120]
[354630714,1740598250206,-474.85,0.00052876,120]
[354630715,1740598250218,-501.85,0.00052876,120]
[354630716,1740598250229,-500.0,0.00052876,120]
[354630717,1740598250239,-871.33,0.00052876,120]
[354630718,1740598250251,-500.0,0.00052876,120]
[354630719,1740598250265,-500.0,0.00052876,120]
[354630720,1740598250274,-214.18,0.00052876,120]
[354630721,1740598250284,-500.0,0.00052876,120]
[354630722,1740598250294,-500.0,0.00052876,120]
[354630723,1740598250303,-500.0,0.00052876,120]
[354630724,1740598250313,-500.0,0.00052876,120]
[354630725,1740598250323,-21904.82,0.00052876,7]
[354630726,1740598250332,-500.0,0.00052876,120]
[354630727,1740598250342,-758.43,0.00052876,120]
[354630728,1740598250351,-500.0,0.00052876,120]
[354630729,1740598250360,-546.24,0.00052876,120]
[354630730,1740598250370,-500.0,0.00052876,120]
[354630731,1740598250380,-15703.25,0.00052876,3]
[354630732,1740598250390,-500.0,0.00052876,120]
[354630733,1740598250400,-500.0,0.00052876,120]
[354630734,1740598250411,-740.24,0.00052876,120]
[354630735,1740598250421,-500.0,0.00052876,120]
[354630736,1740598250431,-500.0,0.00052876,120]
[354630737,1740598250441,-1417.07,0.00052876,120]
[354630738,1740598250452,-500.0,0.00052876,120]
[354630739,1740598250462,-3126.38,0.00052876,120]
[354630740,1740598250478,-500.0,0.00052876,120]
[354630741,1740598250488,-626.25,0.00052876,120]
[354630742,1740598250498,-500.0,0.00052876,120]
[354630743,1740598250509,-500.0,0.00052876,120]
[354630744,1740598250519,-500.0,0.00052876,120]
[354630745,1740598250530,-500.0,0.00052876,120]
[354630746,1740598250540,-500.0,0.00052876,120]
[354630747,1740598250550,-541.24,0.00052876,120]
[354630748,1740598250560,-500.0,0.00052876,120]
[354630749,1740598250571,-500.0,0.00052876,120]
[354630750,1740598250581,-566.48,0.00052876,120]
[354630751,1740598250591,-500.0,0.00052876,120]
[354630752,1740598250601,-3433.35,0.00052876,6]
[354630753,1740598250611,-500.0,0.00052876,120]
[354630754,1740598250621,-500.0,0.00052876,120]
[354630755,1740598250631,-186.96,0.00052876,120]
[354630756,1740598250641,-500.0,0.00052876,120]
[354630757,1740598250650,-1039.61,0.00052876,120]
[354630758,1740598250660,-500.0,0.00052876,120]
[354630759,1740598250670,-817.91,0.00052876,120]
[354630760,1740598250680,-3320.47,0.00052876,120]
[354630761,1740598250689,-500.0,0.00052876,120]
[354630762,1740598250699,-500.0,0.00052876,120]
[354630763,1740598250708,-500.0,0.00052876,120]
[354630764,1740598250721,-301.51,0.00052876,120]
[354630765,1740598250730,-500.0,0.00052876,120]
[354630766,1740598250740,-1977.33,0.00052876,120]
[354630767,1740598250749,-500.0,0.00052876,120]
[354630768,1740598250759,-965.69,0.00052876,120]
[354630769,1740598250768,-1008.38,0.000529,30]
[354630770,1740598250778,-12632.745378,0.00053,30]
[354630771,1740598250787,-200.0,0.0005315,7]
[354630772,1740598250799,-500.0,0.0005315,120]
[354630773,1740598250810,-500.0,0.0005315,120]
[354630774,1740598250820,-500.0,0.0005315,120]
[354630775,1740598250830,-500.0,0.0005315,120]
[354630776,1740598250842,-500.0,0.0005315,120]
[354630777,1740598250852,-500.0,0.0005315,120]
[354630778,1740598250862,-322.59,0.0005315,120]
[354630779,1740598250871,-500.0,0.0005315,120]
[354630780,1740598250881,-500.0,0.0005315,120]
[354630781,1740598250891,-500.0,0.0005315,120]
[354630782,1740598250901,-500.0,0.0005315,120]
[354630783,1740598250911,-500.0,0.0005315,120]
[354630784,1740598250920,-500.0,0.0005315,120]
[354630785,1740598250929,-500.0,0.0005315,120]
[354630786,1740598250939,-500.0,0.0005315,120]
[354630787,1740598250949,-314.27,0.0005315,120]
[354630788,1740598250958,-500.0,0.0005315,120]
[354630789,1740598250970,-1575.21,0.0005315,120]
[354630790,1740598250980,-178.51,0.0005315,120]
[354630791,1740598250990,-500.0,0.0005315,120]
[354630792,1740598251000,-556.96,0.0005315,120]
[354630793,1740598251009,-838.59,0.0005315,120]
[354630794,1740598251019,-500.0,0.0005315,120]
[354630795,1740598251028,-500.0,0.0005315,120]
[354630796,1740598251038,-501.85,0.0005315,120]
[354630797,1740598251047,-500.0,0.0005315,120]
[354630798,1740598251057,-871.33,0.0005315,120]
[354630799,1740598251068,-500.0,0.0005315,120]
[354630800,1740598251077,-204.08,0.0005315,120]
[354630801,1740598251087,-500.0,0.0005315,120]
[354630802,1740598251097,-401.12,0.0005315,120]
[354630803,1740598251106,-500.0,0.0005315,120]
[354630804,1740598251116,-500.0,0.0005315,120]
[354630805,1740598251125,-21904.82,0.0005315,7]
[354630806,1740598251135,-500.0,0.0005315,120]
[354630807,1740598251145,-758.43,0.0005315,120]
[354630808,1740598251155,-500.0,0.0005315,120]
[354630809,1740598251164,-546.24,0.0005315,120]
[354630810,1740598251174,-573.0,0.0005315,120]
[354630811,1740598251183,-15703.25,0.0005315,3]
[354630812,1740598251193,-500.0,0.0005315,120]
[354630813,1740598251202,-500.0,0.0005315,120]
[354630814,1740598251212,-740.24,0.0005315,120]
[354630815,1740598251223,-500.0,0.0005315,120]
[354630816,1740598251232,-500.0,0.0005315,120]
[354630817,1740598251242,-1417.07,0.0005315,120]
[354630818,1740598251252,-214.68035025,0.0005315,120]
[354630819,1740598251261,-3126.38,0.0005315,120]
[354630820,1740598251271,-500.0,0.0005315,120]
[354630821,1740598251281,-626.25,0.0005315,120]
[354630822,1740598251290,-500.0,0.0005315,120]
[354630823,1740598251300,-500.0,0.0005315,120]
[354630824,1740598251309,-500.0,0.0005315,120]
[354630825,1740598251320,-500.0,0.0005315,120]
[354630826,1740598251330,-500.0,0.0005315,120]
[354630827,1740598251340,-500.0,0.0005315,120]
[354630828,1740598251350,-495.16,0.0005315,120]
[354630829,1740598251361,-500.0,0.0005315,120]
[354630830,1740598251371,-3433.35,0.0005315,6]
[354630831,1740598251381,-500.0,0.0005315,120]
[354630832,1740598251391,-500.0,0.0005315,120]
[354630833,1740598251401,-500.0,0.0005315,120]
[354630834,1740598251411,-1039.61,0.0005315,120]
[354630835,1740598251421,-500.0,0.0005315,120]
[354630836,1740598251431,-817.91,0.0005315,120]
[354630837,1740598251441,-3320.47,0.0005315,120]
[354630838,1740598251451,-500.0,0.0005315,120]
[354630839,1740598251460,-432.9380895,0.0005315,120]
[354630840,1740598251473,-500.0,0.0005315,120]
[354630841,1740598251482,-1977.33,0.0005315,120]
[354630842,1740598251492,-500.0,0.0005315,120]
[354630843,1740598251501,-965.69,0.0005315,120]
[354630844,1740598251511,-1057.12,0.000532,30]
[354630845,1740598251520,-500.0,0.00053273,10]
[354630846,1740598251530,-500.0,0.00053273,10]
[354630847,1740598251540,-500.0,0.00053273,10]
[354630848,1740598251549,-126462.20987499,0.00053299,120]
[354630849,1740598251559,-43211.41686915,0.000533,30]
[354630850,1740598251569,-524.97,0.000533,30]
[354630851,1740598251578,-162.02,0.000533,30]
[354630852,1740598251588,-245.4,0.000533,30]
[354630853,1740598251598,-200.0,0.00053424,7]
[354630854,1740598251608,-500.0,0.00053424,120]
[354630855,1740598251618,-500.0,0.00053424,120]
[354630856,1740598251628,-500.0,0.00053424,120]
[354630857,1740598251637,-500.0,0.00053424,120]
[354630858,1740598251648,-500.0,0.00053424,120]
[354630859,1740598251658,-500.0,0.00053424,120]
[354630860,1740598251844,-500.0,0.00053424,120]
[354630861,1740598251857,-500.0,0.00053424,120]
[354630862,1740598251866,-500.0,0.00053424,120]
[354630863,1740598251876,-500.0,0.00053424,120]
[354630864,1740598251886,-500.0,0.00053424,120]
[354630865,1740598251895,-500.0,0.00053424,120]
[354630866,1740598251904,-500.0,0.00053424,120]
[354630867,1740598251913,-313.28,0.00053424,120]
[354630868,1740598251923,-500.0,0.00053424,120]
[354630869,1740598251932,-1575.21,0.00053424,120]
[354630870,1740598251941,-500.0,0.00053424,120]
[354630871,1740598251950,-838.59,0.00053424,120]
[354630872,1740598251959,-500.0,0.00053424,120]
[354630873,1740598251971,-500.0,0.00053424,120]
[354630874,1740598251980,-501.85,0.00053424,120]
[354630875,1740598251990,-500.0,0.00053424,120]
[354630876,1740598252000,-871.33,0.00053424,120]
[354630877,1740598252010,-500.0,0.00053424,120]
[354630878,1740598252019,-500.0,0.00053424,120]
[354630879,1740598252030,-328.8,0.00053424,120]
[354630880,1740598252040,-500.0,0.00053424,120]
[354630881,1740598252049,-18821.93807838,0.00053424,7]
[354630882,1740598252067,-935.32227935,0.00053424,7]
[354630883,1740598252078,-847.97,0.00053424,7]
[354630884,1740598252099,-1299.58964227,0.00053424,7]
[354630885,1740598252108,-166.14,0.00053424,120]
[354630886,1740598252118,-758.43,0.00053424,120]
[354630887,1740598252127,-500.0,0.00053424,120]
[354630888,1740598252137,-546.24,0.00053424,120]
[354630889,1740598252146,-15703.25,0.00053424,3]
[354630890,1740598252155,-500.0,0.00053424,120]
[354630891,1740598252165,-562.56381779,0.00053424,120]
[354630892,1740598252174,-740.24,0.00053424,120]
[354630893,1740598252183,-500.0,0.00053424,120]
[354630894,1740598252193,-500.0,0.00053424,120]
[354630895,1740598252202,-1417.07,0.00053424,120]
[354630896,1740598252212,-3126.38,0.00053424,120]
[354630897,1740598252222,-500.0,0.00053424,120]
[354630898,1740598252232,-626.25,0.00053424,120]
[354630899,1740598252241,-500.0,0.00053424,120]
[354630900,1740598252250,-500.0,0.00053424,120]
[354630901,1740598252259,-500.0,0.00053424,120]
[354630902,1740598252269,-500.0,0.00053424,120]
[354630903,1740598252278,-500.0,0.00053424,120]
[354630904,1740598252288,-500.0,0.00053424,120]
[354630905,1740598252298,-500.0,0.00053424,120]
[354630906,1740598252307,-3433.35,0.00053424,6]
[354630907,1740598252317,-500.0,0.00053424,120]
[354630908,1740598252326,-500.0,0.00053424,120]
[354630909,1740598252335,-500.0,0.00053424,120]
[354630910,1740598252344,-1039.61,0.00053424,120]
[354630911,1740598252353,-500.0,0.00053424,120]
[354630912,1740598252363,-817.91,0.00053424,120]
[354630913,1740598252372,-3320.47,0.00053424,120]
[354630914,1740598252382,-500.0,0.00053424,120]
[354630915,1740598252392,-500.0,0.00053424,120]
[354630916,1740598252401,-1977.33,0.00053424,120]
[354630917,1740598252411,-500.0,0.00053424,120]
[354630918,1740598252420,-965.69,0.00053424,120]
[354630919,1740598252429,-200.0,0.00053698,7]
[354630920,1740598252438,-500.0,0.00053698,120]
[354630921,1740598252447,-500.0,0.00053698,120]
[354630922,1740598252456,-500.0,0.00053698,120]
[354630923,1740598252465,-500.0,0.00053698,120]
[354630924,1740598252474,-276.45885419,0.00053698,120]
[354630925,1740598252483,-500.0,0.00053698,120]
[354630926,1740598252493,-500.0,0.00053698,120]
[354630927,1740598252502,-500.0,0.00053698,120]
[354630928,1740598252512,-175.06,0.00053698,120]
[354630929,1740598252522,-500.0,0.00053698,120]
[354630930,1740598252531,-507.07,0.00053698,120]
[354630931,1740598252540,-500.0,0.00053698,120]
[354630932,1740598252549,-500.0,0.00053698,120]
[354630933,1740598252559,-170.32,0.00053698,120]
[354630934,1740598252568,-1575.21,0.00053698,120]
[354630935,1740598252577,-500.0,0.00053698,120]
[354630936,1740598252586,-838.59,0.00053698,120]
[354630937,1740598252595,-500.0,0.00053698,120]
[354630938,1740598252604,-500.0,0.00053698,120]
[354630939,1740598252614,-501.85,0.00053698,120]
[354630940,1740598252624,-500.0,0.00053698,120]
[354630941,1740598252634,-871.33,0.00053698,120]
[354630942,1740598252644,-175.13,0.00053698,120]
[354630943,1740598252654,-500.0,0.00053698,120]
[354630944,1740598252663,-500.0,0.00053698,120]
[354630945,1740598252673,-21904.82,0.00053698,7]
[354630946,1740598252683,-758.43,0.00053698,120]
[354630947,1740598252692,-500.0,0.00053698,120]
[354630948,1740598252702,-546.24,0.00053698,120]
[354630949,1740598252711,-15703.25,0.00053698,3]
[354630950,1740598252724,-500.0,0.00053698,120]
[354630951,1740598252733,-740.24,0.00053698,120]
[354630952,1740598252743,-500.0,0.00053698,120]
[354630953,1740598252752,-500.0,0.00053698,120]
[354630954,1740598252762,-1417.07,0.00053698,120]
[354630955,1740598252773,-3126.38,0.00053698,120]
[354630956,1740598252782,-500.0,0.00053698,120]
[354630957,1740598252792,-626.25,0.00053698,120]
[354630958,1740598252802,-500.0,0.00053698,120]
[354630959,1740598252815,-500.0,0.00053698,120]
[354630960,1740598252824,-500.0,0.00053698,120]
[354630961,1740598252833,-500.0,0.00053698,120]
[354630962,1740598252843,-500.0,0.00053698,120]
[354630963,1740598252854,-500.0,0.00053698,120]
[354630964,1740598252863,-500.0,0.00053698,120]
[354630965,1740598252873,-3433.35,0.00053698,6]
[354630966,1740598252883,-500.0,0.00053698,120]
[354630967,1740598252894,-500.0,0.00053698,120]
[354630968,1740598252904,-500.0,0.00053698,120]
[354630969,1740598252913,-1039.61,0.00053698,120]
[354630970,1740598252923,-500.0,0.00053698,120]
[354630971,1740598252932,-817.91,0.00053698,120]
[354630972,1740598252942,-3320.47,0.00053698,120]
[354630973,1740598252951,-500.0,0.00053698,120]
[354630974,1740598252961,-500.0,0.00053698,120]
[354630975,1740598252975,-1977.33,0.00053698,120]
[354630976,1740598252985,-500.0,0.00053698,120]
[354630977,1740598252995,-965.69,0.00053698,120]
[354630978,1740598253004,-735.43,0.000537,54]
[354630979,1740598253014,-735.43,0.000537,54]
[354630980,1740598253024,-735.43,0.000537,54]
[354630981,1740598253033,-735.43,0.000537,54]
[354630982,1740598253043,-735.43,0.000537,54]
[354630983,1740598253052,-735.43,0.000537,54]
[354630984,1740598253061,-735.43,0.000537,54]
[354630985,1740598253071,-735.43,0.000537,54]
[354630986,1740598253082,-735.43,0.000537,54]
[354630987,1740598253091,-735.43,0.000537,54]
[354630988,1740598253101,-735.43,0.000537,54]
[354630989,1740598253110,-735.43,0.000537,54]
[354630990,1740598253120,-500.0,0.00053949,7]
[354630991,1740598253130,-200.0,0.00053972,7]
[354630992,1740598253139,-500.0,0.00053972,120]
[354630993,1740598253149,-500.0,0.00053972,120]
[354630994,1740598253158,-500.0,0.00053972,120]
[354630995,1740598253167,-500.0,0.00053972,120]
[354630996,1740598253177,-500.0,0.00053972,120]
[354630997,1740598253187,-500.0,0.00053972,120]
[354630998,1740598253196,-500.0,0.00053972,120]
[354630999,1740598253205,-500.0,0.00053972,120]
[354631000,1740598253216,-500.0,0.00053972,120]
[354631001,1740598253225,-223.78,0.00053972,120]
[354631002,1740598253234,-1575.21,0.00053972,120]
[354631003,1740598253244,-500.0,0.00053972,120]
[354631004,1740598253253,-838.59,0.00053972,120]
[354631005,1740598253262,-500.0,0.00053972,120]
[354631006,1740598253271,-500.0,0.00053972,120]
[354631007,1740598253281,-501.85,0.00053972,120]
[354631008,1740598253292,-500.0,0.00053972,120]
[354631009,1740598253302,-871.33,0.00053972,120]
[354631010,1740598253312,-500.0,0.00053972,120]
[354631011,1740598253323,-500.0,0.00053972,120]
[354631012,1740598253332,-21904.82,0.00053972,7]
[354631013,1740598253343,-758.43,0.00053972,120]
[354631014,1740598253354,-500.0,0.00053972,120]
[354631015,1740598253364,-546.24,0.00053972,120]
[354631016,1740598253373,-15703.25,0.00053972,3]
[354631017,1740598253382,-309.0,0.00053972,120]
[354631018,1740598253392,-740.24,0.00053972,120]
[354631019,1740598253401,-500.0,0.00053972,120]
[354631020,1740598253411,-500.0,0.00053972,120]
[354631021,1740598253421,-1417.07,0.00053972,120]
[354631022,1740598253430,-3126.38,0.00053972,120]
[354631023,1740598253439,-500.0,0.00053972,120]
[354631024,1740598253448,-626.25,0.00053972,120]
[354631025,1740598253458,-500.0,0.00053972,120]
[354631026,1740598253469,-500.0,0.00053972,120]
[354631027,1740598253478,-500.0,0.00053972,120]
[354631028,1740598253488,-500.0,0.00053972,120]
[354631029,1740598253497,-500.0,0.00053972,120]
[354631030,1740598253507,-500.0,0.00053972,120]
[354631031,1740598253516,-500.0,0.00053972,120]
[354631032,1740598253526,-3433.35,0.00053972,6]
[354631033,1740598253535,-500.0,0.00053972,120]
[354631034,1740598253544,-500.0,0.00053972,120]
[354631035,1740598253554,-500.0,0.00053972,120]
[354631036,1740598253563,-1039.61,0.00053972,120]
[354631037,1740598253572,-500.0,0.00053972,120]
[354631038,1740598253582,-817.91,0.00053972,120]
[354631039,1740598253591,-3320.47,0.00053972,120]
[354631040,1740598253600,-500.0,0.00053972,120]
[354631041,1740598253610,-500.0,0.00053972,120]
[354631042,1740598253620,-1977.33,0.00053972,120]
[354631043,1740598253630,-500.0,0.00053972,120]
[354631044,1740598253639,-965.69,0.00053972,120]
[354631045,1740598253648,-200.0,0.00054246,7]
[354631046,1740598253658,-500.0,0.00054246,120]
[354631047,1740598253667,-500.0,0.00054246,120]
[354631048,1740598253676,-500.0,0.00054246,120]
[354631049,1740598253686,-500.0,0.00054246,120]
[354631050,1740598253695,-500.0,0.00054246,120]
[354631051,1740598253705,-500.0,0.00054246,120]
[354631052,1740598253716,-500.0,0.00054246,120]
[354631053,1740598253725,-500.0,0.00054246,120]
[354631054,1740598253734,-500.0,0.00054246,120]
[354631055,1740598253743,-1575.21,0.00054246,120]
[354631056,1740598253752,-500.0,0.00054246,120]
[354631057,1740598253762,-838.59,0.00054246,120]
[354631058,1740598253771,-500.0,0.00054246,120]
[354631059,1740598253780,-500.0,0.00054246,120]
[354631060,1740598253790,-501.85,0.00054246,120]
[354631061,1740598253804,-444.3,0.00054246,120]
[354631062,1740598253814,-871.33,0.00054246,120]
[354631063,1740598253823,-619.53,0.00054246,120]
[354631064,1740598253833,-594.83,0.00054246,120]
[354631065,1740598253843,-21904.82,0.00054246,7]
[354631066,1740598253852,-758.43,0.00054246,120]
[354631067,1740598253862,-500.0,0.00054246,120]
[354631068,1740598253871,-546.24,0.00054246,120]